[Event "World Junior Chess Championship U20 2022"]
[White "Nemeth, Zalan"]
[Black "Ballesteros Cardenas, Leonardo"]
[WhiteFideId "2512041"]
[BlackFideId "3428141"]
[WhiteElo "2247"]
[BlackElo "2121"]
[Result "1-0"]
[Round "04"]
[TimeControl "5400+30"]
[Date "2022.10.14"]
[WhiteClock "0:27:37"]
[BlackClock "0:30:11"]

1. d4 {[%clk 1:30:57]}  Nf6 {[%clk 1:27:19]} 2. c4 {[%clk 1:31:22]}  e6 {[%clk 1:27:22]} 3. Nf3 {[%clk 1:31:37]}  c5 {[%clk 1:25:24]} 4. d5 {[%clk 1:31:37]}  exd5 {[%clk 1:25:44]} 5. cxd5 {[%clk 1:32:01]}  d6 {[%clk 1:26:07]} 6. Nc3 {[%clk 1:32:23]}  g6 {[%clk 1:23:01]} 7. Nd2 {[%clk 1:32:06]}  a6 {[%clk 1:15:22]} 8. a4 {[%clk 1:32:29]}  Bg7 {[%clk 1:14:04]} 9. e4 {[%clk 1:32:53]}  O-O {[%clk 1:14:25]} 10. Be2 {[%clk 1:33:17]}  Re8 {[%clk 1:13:57]} 11. O-O {[%clk 1:33:41]}  Nbd7 {[%clk 1:13:05]} 12. Ra3 {[%clk 1:30:14]}  Qc7 {[%clk 1:08:25]} 13. Re1 {[%clk 1:26:46]}  Rb8 {[%clk 1:07:37]} 14. a5 {[%clk 1:26:03]}  h6 {[%clk 0:57:40]} 15. Qc2 {[%clk 1:25:25]}  b5 {[%clk 0:55:24]} 16. axb6 {[%clk 1:24:31]}  Rxb6 {[%clk 0:55:20]} 17. Nc4 {[%clk 1:24:27]}  Rb4 {[%clk 0:52:37]} 18. Bf4 {[%clk 1:08:54]}  Bf8 {[%clk 0:50:28]} 19. Bd3 {[%clk 0:57:18]}  Nb6 {[%clk 0:38:06]} 20. Nxb6 {[%clk 0:48:52]}  Qxb6 {[%clk 0:35:51]} 21. Na4 {[%clk 0:45:06]}  Qc7 {[%clk 0:34:02]} 22. Bd2 {[%clk 0:45:15]}  Rb8 {[%clk 0:33:17]} 23. b4 {[%clk 0:37:40]}  Ng4 {[%clk 0:28:37]} 24. Bf1 {[%clk 0:34:07]}  Bd7 {[%clk 0:22:25]} 25. h3 {[%clk 0:33:33]}  Nf6 {[%clk 0:17:21]} 26. bxc5 {[%clk 0:33:08]}  dxc5 {[%clk 0:17:40]} 27. Rf3 {[%clk 0:28:42]}  Bxa4 {[%clk 0:14:19]} 28. Qxa4 {[%clk 0:29:07]}  Nd7 {[%clk 0:12:56]} 29. Qxa6 {[%clk 0:28:21]}  Ne5 {[%clk 0:12:43]} 30. Rc3 {[%clk 0:27:41]}  Rb2 {[%clk 0:09:56]} 31. Bc1 {[%clk 0:23:47]}  Rb1 {[%clk 0:09:27]} 32. Qa2 {[%clk 0:23:32]}  Reb8 {[%clk 0:08:19]} 33. f4 {[%clk 0:21:51]}  Nd7 {[%clk 0:08:47]} 34. Bd3 {[%clk 0:19:49]}  R1b4 {[%clk 0:08:42]} 35. e5 {[%clk 0:19:26]}  Bg7 {[%clk 0:06:39]} 36. d6 {[%clk 0:17:51]}  Qb7 {[%clk 0:05:40]} 37. Bxg6 {[%clk 0:17:45]}  c4 {[%clk 0:04:58]} 38. Rxc4 {[%clk 0:12:59]}  Rb3 {[%clk 0:01:11]} 39. Be4 {[%clk 0:11:20]}  Qb6+ {[%clk 0:01:29]} 40. Qf2 {[%clk 0:09:05]}  Qb5 {[%clk 0:01:45]} 41. Rc7 {[%clk 0:09:03]}  Nf8 {[%clk 0:01:19]} 42. Bc6 {[%clk 0:27:34]}  Qa6 {[%clk 0:30:11]} 43. Bd5 {[%clk 0:27:37]} 1-0


[Site "http://www.chessbomb.com"]

[Event "World Junior Chess Championship U20 2022"]
[White "Oye-Stromberg, Alexander"]
[Black "Djurovic, Peko"]
[WhiteFideId "1525999"]
[BlackFideId "16503902"]
[WhiteElo "2233"]
[BlackElo "2084"]
[Result "1/2-1/2"]
[Round "04"]
[TimeControl "5400+30"]
[Date "2022.10.14"]
[WhiteClock "0:03:17"]
[BlackClock "0:04:47"]

1. e4 {[%clk 1:30:41]}  c5 {[%clk 1:30:36]} 2. Nf3 {[%clk 1:30:36]}  Nc6 {[%clk 1:30:47]} 3. d4 {[%clk 1:30:21]}  cxd4 {[%clk 1:31:04]} 4. Nxd4 {[%clk 1:30:37]}  Nf6 {[%clk 1:31:23]} 5. Nc3 {[%clk 1:30:49]}  e5 {[%clk 1:31:02]} 6. Ndb5 {[%clk 1:30:49]}  d6 {[%clk 1:30:26]} 7. Bg5 {[%clk 1:30:16]}  a6 {[%clk 1:30:32]} 8. Na3 {[%clk 1:30:27]}  b5 {[%clk 1:30:38]} 9. Bxf6 {[%clk 1:29:38]}  gxf6 {[%clk 1:30:28]} 10. Nd5 {[%clk 1:29:19]}  f5 {[%clk 1:30:38]} 11. g3 {[%clk 1:27:49]}  fxe4 {[%clk 1:23:03]} 12. Bg2 {[%clk 1:27:15]}  Bg7 {[%clk 1:23:09]} 13. Bxe4 {[%clk 1:27:01]}  Ra7 {[%clk 1:23:21]} 14. c3 {[%clk 1:11:33]}  O-O {[%clk 1:22:24]} 15. Nc2 {[%clk 1:01:33]}  Be6 {[%clk 1:05:33]} 16. O-O {[%clk 0:48:27]}  f5 {[%clk 1:03:12]} 17. Bg2 {[%clk 0:47:07]}  Ne7 {[%clk 0:57:50]} 18. Ncb4 {[%clk 0:45:47]}  Bxd5 {[%clk 0:57:53]} 19. Bxd5+ {[%clk 0:44:22]}  Kh8 {[%clk 0:57:57]} 20. Qd2 {[%clk 0:20:55]}  Qb6 {[%clk 0:51:28]} 21. Rad1 {[%clk 0:19:22]}  a5 {[%clk 0:49:08]} 22. Nc2 {[%clk 0:19:44]}  Rf6 {[%clk 0:48:05]} 23. Qe3 {[%clk 0:13:58]}  Qc7 {[%clk 0:45:04]} 24. Na3 {[%clk 0:12:32]}  f4 {[%clk 0:33:26]} 25. Qd3 {[%clk 0:11:42]}  Nxd5 {[%clk 0:32:29]} 26. Qxd5 {[%clk 0:12:04]}  Qd7 {[%clk 0:32:41]} 27. Qxb5 {[%clk 0:05:26]}  Qh3 {[%clk 0:32:28]} 28. Rd3 {[%clk 0:05:45]}  e4 {[%clk 0:31:26]} 29. Qe8+ {[%clk 0:06:03]}  Rf8 {[%clk 0:31:52]} 30. Qxe4 {[%clk 0:06:17]}  Raf7 {[%clk 0:31:59]} 31. gxf4 {[%clk 0:04:49]}  Qh4 {[%clk 0:32:14]} 32. Rg3 {[%clk 0:04:47]}  Rxf4 {[%clk 0:32:27]} 33. Qg2 {[%clk 0:05:13]}  Be5 {[%clk 0:32:38]} 34. Kh1 {[%clk 0:03:55]}  Rf3 {[%clk 0:30:28]} 35. Rg4 {[%clk 0:02:22]}  Qh5 {[%clk 0:26:28]} 36. Rg1 {[%clk 0:01:38]}  Qf7 {[%clk 0:26:35]} 37. Rf1 {[%clk 0:02:02]}  Qh5 {[%clk 0:26:06]} 38. Rg1 {[%clk 0:02:28]}  Qf7 {[%clk 0:26:33]} 39. Rf1 {[%clk 0:01:58]}  Qh5 {[%clk 0:26:59]} 40. Rg5 {[%clk 0:00:58]}  Qf7 {[%clk 0:17:34]} 41. Nc2 {[%clk 0:16:18]}  Qxa2 {[%clk 0:07:19]} 42. Ne1 {[%clk 0:16:18]}  R3f6 {[%clk 0:01:00]} 43. Nd3 {[%clk 0:05:06]}  Bf4 {[%clk 0:01:17]} 44. Rg4 {[%clk 0:04:58]}  Qf7 {[%clk 0:00:39]} 45. Rg1 {[%clk 0:05:22]}  Bh6 {[%clk 0:00:35]} 46. b4 {[%clk 0:03:59]}  a4 {[%clk 0:00:51]} 47. b5 {[%clk 0:03:57]}  a3 {[%clk 0:01:08]} 48. b6 {[%clk 0:03:23]}  a2 {[%clk 0:01:37]} 49. b7 {[%clk 0:02:18]}  Rg6 {[%clk 0:00:46]} 50. Rxg6 {[%clk 0:01:54]}  hxg6 {[%clk 0:01:14]} 51. Qc6 {[%clk 0:01:21]}  Rb8 {[%clk 0:01:09]} 52. Qc8+ {[%clk 0:01:25]}  Kh7 {[%clk 0:01:31]} 53. Qc6 {[%clk 0:00:37]}  Rxb7 {[%clk 0:01:31]} 54. Nb4 {[%clk 0:00:47]}  Ra7 {[%clk 0:00:51]} 55. Nc2 {[%clk 0:00:33]}  Qxf2 {[%clk 0:00:40]} 56. Qe4 {[%clk 0:01:00]}  Qf5 {[%clk 0:00:46]} 57. Qxf5 {[%clk 0:01:14]}  gxf5 {[%clk 0:01:15]} 58. Ra1 {[%clk 0:01:38]}  Bd2 {[%clk 0:00:48]} 59. Nb4 {[%clk 0:02:05]}  Bxc3 {[%clk 0:01:11]} 60. Rxa2 {[%clk 0:02:32]}  Rxa2 {[%clk 0:00:45]} 61. Nxa2 {[%clk 0:03:00]}  Bd2 {[%clk 0:01:09]} 62. Kg2 {[%clk 0:03:22]}  Kg6 {[%clk 0:01:28]} 63. Kf3 {[%clk 0:03:26]}  Kg5 {[%clk 0:01:52]} 64. Ke2 {[%clk 0:03:18]}  Bf4 {[%clk 0:02:21]} 65. h3 {[%clk 0:02:49]}  Kh4 {[%clk 0:02:41]} 66. Kf3 {[%clk 0:02:45]}  Bd2 {[%clk 0:03:04]} 67. Ke2 {[%clk 0:03:12]}  Bh6 {[%clk 0:02:36]} 68. Kf3 {[%clk 0:00:48]}  Kxh3 {[%clk 0:02:59]} 69. Nc3 {[%clk 0:01:16]}  Kh4 {[%clk 0:02:46]} 70. Nb5 {[%clk 0:01:26]}  d5 {[%clk 0:03:13]} 71. Nc7 {[%clk 0:01:33]}  d4 {[%clk 0:03:39]} 72. Ne6 {[%clk 0:01:58]}  Be3 {[%clk 0:03:54]} 73. Nxd4 {[%clk 0:02:22]}  Bxd4 {[%clk 0:04:20]} 74. Kf4 {[%clk 0:02:50]}  Bc5 {[%clk 0:04:47]} 75. Kxf5 {[%clk 0:03:17]} 1/2-1/2


[Site "http://www.chessbomb.com"]

[Event "World Junior Chess Championship U20 2022"]
[White "Avila Rodriguez, Joshua Ad"]
[Black "Pennica, Andrea"]
[WhiteFideId "5126444"]
[BlackFideId "2816828"]
[WhiteElo "2225"]
[BlackElo "2037"]
[Result "1-0"]
[Round "04"]
[TimeControl "5400+30"]
[Date "2022.10.14"]
[WhiteClock "0:23:21"]
[BlackClock "0:27:03"]

1. e4 {[%clk 1:30:53]}  c5 {[%clk 1:29:24]} 2. Nf3 {[%clk 1:31:14]}  g6 {[%clk 1:29:48]} 3. d4 {[%clk 1:31:25]}  cxd4 {[%clk 1:30:11]} 4. Nxd4 {[%clk 1:31:48]}  Bg7 {[%clk 1:30:32]} 5. c4 {[%clk 1:31:56]}  Nc6 {[%clk 1:30:51]} 6. Be3 {[%clk 1:32:11]}  Nf6 {[%clk 1:31:02]} 7. Nc3 {[%clk 1:32:34]}  O-O {[%clk 1:31:02]} 8. Be2 {[%clk 1:32:53]}  d6 {[%clk 1:31:07]} 9. O-O {[%clk 1:33:12]}  Bd7 {[%clk 1:30:26]} 10. h3 {[%clk 1:33:25]}  a5 {[%clk 1:30:42]} 11. Rc1 {[%clk 1:16:40]}  a4 {[%clk 1:28:06]} 12. Ndb5 {[%clk 1:03:26]}  Nb8 {[%clk 1:08:27]} 13. Bf3 {[%clk 0:56:24]}  Bc6 {[%clk 1:03:13]} 14. Qc2 {[%clk 0:28:25]}  Nbd7 {[%clk 0:56:54]} 15. b4 {[%clk 0:26:11]}  axb3 {[%clk 0:54:52]} 16. axb3 {[%clk 0:26:35]}  b6 {[%clk 0:43:31]} 17. Rfd1 {[%clk 0:25:54]}  Qc8 {[%clk 0:42:44]} 18. Nd4 {[%clk 0:19:11]}  Ne5 {[%clk 0:40:53]} 19. Be2 {[%clk 0:19:05]}  Bb7 {[%clk 0:32:30]} 20. Ndb5 {[%clk 0:13:50]}  Nfd7 {[%clk 0:21:56]} 21. Nd5 {[%clk 0:08:40]}  Nc6 {[%clk 0:19:33]} 22. Bxb6 {[%clk 0:05:20]}  Nxb6 {[%clk 0:14:04]} 23. Nxb6 {[%clk 0:05:44]}  Qd8 {[%clk 0:12:31]} 24. Nxa8 {[%clk 0:05:14]}  Qxa8 {[%clk 0:12:48]} 25. Nc7 {[%clk 0:05:17]}  Qa7 {[%clk 0:11:07]} 26. Nd5 {[%clk 0:04:28]}  e6 {[%clk 0:06:41]} 27. Nc3 {[%clk 0:02:10]}  Nd4 {[%clk 0:06:46]} 28. Nb5 {[%clk 0:01:52]}  Qb6 {[%clk 0:03:53]} 29. Qd3 {[%clk 0:01:41]}  Nxb5 {[%clk 0:01:30]} 30. cxb5 {[%clk 0:02:09]}  Be5 {[%clk 0:01:51]} 31. Qe3 {[%clk 0:00:40]}  Qxe3 {[%clk 0:01:44]} 32. fxe3 {[%clk 0:01:08]}  Bxe4 {[%clk 0:02:13]} 33. Bf3 {[%clk 0:01:25]}  Bxf3 {[%clk 0:02:19]} 34. gxf3 {[%clk 0:01:53]}  Rb8 {[%clk 0:02:39]} 35. f4 {[%clk 0:02:11]}  Bb2 {[%clk 0:01:53]} 36. Rb1 {[%clk 0:00:41]}  Ba3 {[%clk 0:00:39]} 37. b4 {[%clk 0:00:48]}  Rxb5 {[%clk 0:01:08]} 38. Rb3 {[%clk 0:01:05]}  Bxb4 {[%clk 0:01:02]} 39. Kg2 {[%clk 0:00:36]}  g5 {[%clk 0:00:49]} 40. Rdb1 {[%clk 0:00:53]}  gxf4 {[%clk 0:00:57]} 41. exf4 {[%clk 0:00:44]}  Rc5 {[%clk 0:29:52]} 42. Rxb4 {[%clk 0:31:06]}  d5 {[%clk 0:30:11]} 43. Rb7 {[%clk 0:30:14]}  Rc2+ {[%clk 0:30:06]} 44. Kf3 {[%clk 0:30:30]}  Rc3+ {[%clk 0:30:35]} 45. Kg4 {[%clk 0:30:45]}  h5+ {[%clk 0:30:25]} 46. Kg5 {[%clk 0:28:11]}  Rg3+ {[%clk 0:30:36]} 47. Kh6 {[%clk 0:27:56]}  Rg6+ {[%clk 0:30:53]} 48. Kxh5 {[%clk 0:28:22]}  Kg7 {[%clk 0:31:15]} 49. f5 {[%clk 0:24:22]}  Rh6+ {[%clk 0:26:22]} 50. Kg5 {[%clk 0:24:30]}  exf5 {[%clk 0:26:35]} 51. Rxf7+ {[%clk 0:24:07]}  Kxf7 {[%clk 0:27:03]} 52. Rb7+ {[%clk 0:23:21]} 1-0


[Site "http://www.chessbomb.com"]

[Event "World Junior Chess Championship U20 2022"]
[White "Andreev, Konstantin"]
[Black "Persico, Lorenzo"]
[WhiteFideId "24239305"]
[BlackFideId "899240"]
[WhiteElo "2206"]
[BlackElo "2007"]
[Result "1-0"]
[Round "04"]
[TimeControl "5400+30"]
[Date "2022.10.14"]
[WhiteClock "1:16:12"]
[BlackClock "0:00:54"]

1. e4 {[%clk 1:30:57]}  e5 {[%clk 1:25:45]} 2. Nf3 {[%clk 1:31:15]}  Nc6 {[%clk 1:26:06]} 3. Bc4 {[%clk 1:31:11]}  Bc5 {[%clk 1:26:32]} 4. c3 {[%clk 1:31:17]}  Nf6 {[%clk 1:26:57]} 5. d4 {[%clk 1:31:24]}  exd4 {[%clk 1:27:22]} 6. b4 {[%clk 1:31:19]}  Bb6 {[%clk 1:25:04]} 7. e5 {[%clk 1:31:17]}  d5 {[%clk 1:20:03]} 8. exf6 {[%clk 1:31:29]}  dxc4 {[%clk 1:16:50]} 9. Qe2+ {[%clk 1:31:33]}  Be6 {[%clk 1:16:22]} 10. b5 {[%clk 1:31:16]}  Nb4 {[%clk 1:08:18]} 11. cxb4 {[%clk 1:29:39]}  Qxf6 {[%clk 0:34:14]} 12. Qe5 {[%clk 1:11:14]}  Qxe5+ {[%clk 0:31:52]} 13. Nxe5 {[%clk 1:10:17]}  f6 {[%clk 0:28:24]} 14. Nf3 {[%clk 1:10:41]}  O-O-O {[%clk 0:28:28]} 15. a4 {[%clk 0:59:52]}  a5 {[%clk 0:25:38]} 16. bxa6 {[%clk 0:57:53]}  bxa6 {[%clk 0:25:38]} 17. a5 {[%clk 0:58:01]}  Ba7 {[%clk 0:26:26]} 18. O-O {[%clk 0:57:00]}  c3 {[%clk 0:15:41]} 19. h4 {[%clk 0:54:51]}  Bc4 {[%clk 0:10:19]} 20. Re1 {[%clk 0:55:15]}  Rhe8 {[%clk 0:10:29]} 21. Rxe8 {[%clk 0:53:59]}  Rxe8 {[%clk 0:10:54]} 22. Bf4 {[%clk 0:53:01]}  Re4 {[%clk 0:10:13]} 23. g3 {[%clk 0:49:36]}  Re2 {[%clk 0:09:41]} 24. Na3 {[%clk 0:49:33]}  Bd5 {[%clk 0:08:34]} 25. Ne1 {[%clk 0:47:54]}  Rb2 {[%clk 0:04:57]} 26. Nd3 {[%clk 0:46:04]}  Rb3 {[%clk 0:03:43]} 27. Nc2 {[%clk 0:45:49]}  Be4 {[%clk 0:01:46]} 28. Rd1 {[%clk 0:45:27]}  Bxd3 {[%clk 0:00:39]} 29. Rxd3 {[%clk 0:45:47]}  Rb2 {[%clk 0:00:59]} 30. Nxd4 {[%clk 0:45:34]}  c2 {[%clk 0:00:49]} 31. Kg2 {[%clk 0:45:52]}  Rxb4 {[%clk 0:00:31]} 32. Nxc2 {[%clk 0:45:28]}  Rb5 {[%clk 0:00:33]} 33. Rc3 {[%clk 0:45:44]}  c5 {[%clk 0:00:54]} 34. Nd4 {[%clk 0:45:52]}  Rxa5 {[%clk 0:00:54]} 35. Nc6 {[%clk 1:16:12]} 1-0


[Site "http://www.chessbomb.com"]

[Event "World Junior Chess Championship U20 2022"]
[White "Casadio, Niccolo`"]
[Black "Stolyarsky, Yegor"]
[WhiteFideId "2827951"]
[BlackFideId "2814595"]
[WhiteElo "2201"]
[BlackElo "1987"]
[Result "1/2-1/2"]
[Round "04"]
[TimeControl "5400+30"]
[Date "2022.10.14"]
[WhiteClock "0:42:25"]
[BlackClock "0:04:26"]

1. e4 {[%clk 1:30:58]}  e5 {[%clk 1:30:27]} 2. Nf3 {[%clk 1:31:19]}  Nc6 {[%clk 1:30:34]} 3. Bc4 {[%clk 1:31:42]}  Bc5 {[%clk 1:28:30]} 4. O-O {[%clk 1:31:46]}  Nf6 {[%clk 1:27:10]} 5. d4 {[%clk 1:31:51]}  Bxd4 {[%clk 1:25:13]} 6. Nxd4 {[%clk 1:32:13]}  Nxd4 {[%clk 1:25:13]} 7. f4 {[%clk 1:32:37]}  d6 {[%clk 1:24:21]} 8. fxe5 {[%clk 1:33:01]}  dxe5 {[%clk 1:24:32]} 9. Bg5 {[%clk 1:33:25]}  Qe7 {[%clk 1:23:07]} 10. Na3 {[%clk 1:32:28]}  Be6 {[%clk 1:16:04]} 11. c3 {[%clk 1:32:39]}  Bxc4 {[%clk 1:14:00]} 12. Bxf6 {[%clk 1:32:55]}  gxf6 {[%clk 1:13:38]} 13. Nxc4 {[%clk 1:33:19]}  Qc5 {[%clk 1:04:11]} 14. cxd4 {[%clk 1:29:43]}  Qxc4 {[%clk 1:04:34]} 15. Rc1 {[%clk 1:26:55]}  Qxd4+ {[%clk 1:04:57]} 16. Qxd4 {[%clk 1:27:19]}  exd4 {[%clk 1:05:19]} 17. Rxc7 {[%clk 1:27:45]}  O-O {[%clk 1:04:08]} 18. Rd1 {[%clk 1:26:17]}  b6 {[%clk 0:55:58]} 19. Rxd4 {[%clk 1:26:11]}  Rac8 {[%clk 0:54:07]} 20. Rxa7 {[%clk 1:17:55]}  Rc1+ {[%clk 0:54:29]} 21. Kf2 {[%clk 1:18:22]}  Rc2+ {[%clk 0:54:39]} 22. Kf3 {[%clk 1:18:46]}  Rxb2 {[%clk 0:55:01]} 23. Rdd7 {[%clk 1:19:05]}  Kg7 {[%clk 0:51:13]} 24. Rdb7 {[%clk 1:18:15]}  Kg6 {[%clk 0:51:17]} 25. g3 {[%clk 1:14:38]}  h5 {[%clk 0:44:28]} 26. Ke3 {[%clk 1:11:12]}  Rb4 {[%clk 0:26:43]} 27. a3 {[%clk 1:10:11]}  Rc4 {[%clk 0:26:08]} 28. Kf3 {[%clk 1:07:58]}  Re8 {[%clk 0:20:55]} 29. Rxf7 {[%clk 1:05:00]}  Rexe4 {[%clk 0:18:38]} 30. Rh7 {[%clk 1:04:52]}  f5 {[%clk 0:13:40]} 31. Rhc7 {[%clk 0:51:51]}  h4 {[%clk 0:10:19]} 32. Rxc4 {[%clk 0:45:09]}  Rxc4 {[%clk 0:10:43]} 33. Ra6 {[%clk 0:44:33]}  h3 {[%clk 0:07:45]} 34. Rxb6+ {[%clk 0:42:31]}  Kg5 {[%clk 0:07:22]} 35. Re6 {[%clk 0:41:02]}  Rc1 {[%clk 0:06:57]} 36. Re8 {[%clk 0:40:08]}  Rc3+ {[%clk 0:06:59]} 37. Re3 {[%clk 0:40:08]}  Rc1 {[%clk 0:07:26]} 38. Re8 {[%clk 0:40:42]}  Rf1+ {[%clk 0:06:53]} 39. Ke2 {[%clk 0:40:59]}  Rh1 {[%clk 0:07:15]} 40. Rg8+ {[%clk 0:41:01]}  Kf6 {[%clk 0:07:35]} 41. Rh8 {[%clk 0:41:01]}  Rxh2+ {[%clk 0:07:59]} 42. Kf3 {[%clk 0:41:42]}  Rh1 {[%clk 0:06:00]} 43. a4 {[%clk 0:42:03]}  Kg7 {[%clk 0:04:24]} 44. Rh4 {[%clk 0:42:18]}  Ra1 {[%clk 0:04:03]} 45. Rxh3 {[%clk 0:42:25]}  Rxa4 {[%clk 0:04:26]} 1/2-1/2


[Site "http://www.chessbomb.com"]

[Event "World Junior Chess Championship U20 2022"]
[White "De Ieso, Lorenzo"]
[Black "Stankovic, Dragan"]
[WhiteFideId "2894101"]
[BlackFideId "14408740"]
[WhiteElo "1938"]
[BlackElo "2181"]
[Result "0-1"]
[Round "04"]
[TimeControl "5400+30"]
[Date "2022.10.14"]
[WhiteClock "0:32:49"]
[BlackClock "0:13:30"]

1. c4 {[%clk 1:30:57]}  c6 {[%clk 1:30:17]} 2. Nf3 {[%clk 1:31:19]}  d5 {[%clk 1:29:53]} 3. e3 {[%clk 1:31:40]}  e6 {[%clk 1:29:11]} 4. Nc3 {[%clk 1:31:59]}  Nf6 {[%clk 1:29:34]} 5. b3 {[%clk 1:32:18]}  Be7 {[%clk 1:29:03]} 6. d4 {[%clk 1:31:39]}  Nbd7 {[%clk 1:28:43]} 7. Bd3 {[%clk 1:31:59]}  b6 {[%clk 1:28:56]} 8. O-O {[%clk 1:32:24]}  Bb7 {[%clk 1:29:18]} 9. Bb2 {[%clk 1:32:45]}  O-O {[%clk 1:29:20]} 10. Qc2 {[%clk 1:33:00]}  h6 {[%clk 1:26:37]} 11. Rad1 {[%clk 1:33:20]}  Qc7 {[%clk 1:24:02]} 12. Ne5 {[%clk 1:32:50]}  Nxe5 {[%clk 1:19:16]} 13. dxe5 {[%clk 1:33:15]}  Ng4 {[%clk 1:19:27]} 14. cxd5 {[%clk 1:32:12]}  Qxe5 {[%clk 1:19:39]} 15. g3 {[%clk 1:28:30]}  Qh5 {[%clk 1:14:33]} 16. h4 {[%clk 1:28:55]}  cxd5 {[%clk 1:11:22]} 17. Ne2 {[%clk 1:25:45]}  Bd6 {[%clk 1:08:19]} 18. Nf4 {[%clk 1:24:26]}  Bxf4 {[%clk 1:08:37]} 19. exf4 {[%clk 1:24:51]}  Rac8 {[%clk 1:07:08]} 20. Qb1 {[%clk 1:24:56]}  f5 {[%clk 0:51:29]} 21. Rfe1 {[%clk 1:21:23]}  Qf7 {[%clk 0:49:21]} 22. Re2 {[%clk 1:16:45]}  Nf6 {[%clk 0:48:08]} 23. Rde1 {[%clk 1:15:22]}  Ne4 {[%clk 0:45:07]} 24. Kh2 {[%clk 1:11:59]}  Qh5 {[%clk 0:37:44]} 25. Re3 {[%clk 1:07:47]}  Rfd8 {[%clk 0:23:31]} 26. Bd4 {[%clk 1:05:10]}  g5 {[%clk 0:21:30]} 27. fxg5 {[%clk 0:57:03]}  hxg5 {[%clk 0:19:24]} 28. f3 {[%clk 0:54:25]}  gxh4 {[%clk 0:13:36]} 29. g4 {[%clk 0:51:44]}  Qg5 {[%clk 0:11:45]} 30. fxe4 {[%clk 0:50:27]}  dxe4 {[%clk 0:12:01]} 31. Rg1 {[%clk 0:38:57]}  Qf4+ {[%clk 0:12:14]} 32. Kh3 {[%clk 0:37:52]}  Rxd4 {[%clk 0:12:29]} 33. gxf5+ {[%clk 0:37:47]}  Kh8 {[%clk 0:11:30]} 34. Qe1 {[%clk 0:32:53]}  Qxe3+ {[%clk 0:10:52]} 35. Qxe3 {[%clk 0:32:45]}  Rxd3 {[%clk 0:11:16]} 36. Qxd3 {[%clk 0:32:59]}  exd3 {[%clk 0:11:41]} 37. fxe6 {[%clk 0:33:12]}  Re8 {[%clk 0:11:58]} 38. Rd1 {[%clk 0:33:10]}  Be4 {[%clk 0:12:12]} 39. Kxh4 {[%clk 0:33:28]}  Rxe6 {[%clk 0:12:36]} 40. Kg3 {[%clk 0:33:46]}  Bg6 {[%clk 0:12:54]} 41. a4 {[%clk 0:33:08]}  Kg7 {[%clk 0:13:08]} 42. b4 {[%clk 0:32:23]}  Rd6 {[%clk 0:13:15]} 43. Rd2 {[%clk 0:32:49]}  Rd4 {[%clk 0:13:30]} 0-1


[Site "http://www.chessbomb.com"]

[Event "World Junior Chess Championship U20 2022"]
[White "Hercegovac, Neven"]
[Black "Karsten, Jan"]
[WhiteFideId "2839135"]
[BlackFideId "14350653"]
[WhiteElo "2175"]
[BlackElo "1985"]
[Result "1-0"]
[Round "04"]
[TimeControl "5400+30"]
[Date "2022.10.14"]
[WhiteClock "0:44:49"]
[BlackClock "0:08:46"]

1. e4 {[%clk 1:30:58]}  c5 {[%clk 1:30:55]} 2. Nc3 {[%clk 1:31:22]}  d6 {[%clk 1:31:19]} 3. d4 {[%clk 1:31:48]}  cxd4 {[%clk 1:31:36]} 4. Qxd4 {[%clk 1:32:15]}  Nc6 {[%clk 1:31:03]} 5. Qd2 {[%clk 1:32:39]}  g6 {[%clk 1:30:00]} 6. b3 {[%clk 1:32:48]}  Bh6 {[%clk 1:29:29]} 7. f4 {[%clk 1:33:11]}  e5 {[%clk 1:27:53]} 8. Nb5 {[%clk 1:33:30]}  Bxf4 {[%clk 1:13:37]} 9. Qxd6 {[%clk 1:33:38]}  Qxd6 {[%clk 1:09:15]} 10. Nxd6+ {[%clk 1:34:01]}  Kf8 {[%clk 1:09:00]} 11. Ba3 {[%clk 1:34:25]}  Nge7 {[%clk 1:05:05]} 12. c3 {[%clk 1:32:29]}  Kg7 {[%clk 1:00:40]} 13. Bc4 {[%clk 1:30:57]}  f6 {[%clk 0:50:14]} 14. Nf3 {[%clk 1:24:30]}  a6 {[%clk 0:47:43]} 15. Rd1 {[%clk 1:17:30]}  b5 {[%clk 0:38:34]} 16. Nxc8 {[%clk 1:17:15]}  Raxc8 {[%clk 0:38:12]} 17. Be6 {[%clk 1:17:36]}  Rcd8 {[%clk 0:37:46]} 18. Ke2 {[%clk 1:17:26]}  f5 {[%clk 0:34:54]} 19. exf5 {[%clk 1:13:51]}  gxf5 {[%clk 0:29:44]} 20. g3 {[%clk 1:13:32]}  Bh6 {[%clk 0:28:02]} 21. Bc5 {[%clk 0:59:19]}  Kf6 {[%clk 0:24:01]} 22. Bd7 {[%clk 0:57:05]}  Nd4+ {[%clk 0:09:45]} 23. cxd4 {[%clk 0:54:40]}  Rxd7 {[%clk 0:10:08]} 24. dxe5+ {[%clk 0:54:46]}  Ke6 {[%clk 0:10:33]} 25. Nd4+ {[%clk 0:50:40]}  Kxe5 {[%clk 0:10:24]} 26. Bxe7 {[%clk 0:50:10]}  Rxe7 {[%clk 0:08:43]} 27. Nc6+ {[%clk 0:50:34]}  Kf6+ {[%clk 0:08:43]} 28. Nxe7 {[%clk 0:50:58]}  Kxe7 {[%clk 0:09:06]} 29. Kf3 {[%clk 0:51:08]}  Rc8 {[%clk 0:09:16]} 30. Rhe1+ {[%clk 0:51:31]}  Kf6 {[%clk 0:09:33]} 31. Rd6+ {[%clk 0:51:53]}  Kg5 {[%clk 0:09:55]} 32. h4+ {[%clk 0:44:53]}  Kh5 {[%clk 0:10:08]} 33. Re5 {[%clk 0:44:54]}  Rc3+ {[%clk 0:10:24]} 34. Kg2 {[%clk 0:44:53]}  Kg4 {[%clk 0:08:46]} 35. Rxh6 {[%clk 0:44:49]} 1-0


[Site "http://www.chessbomb.com"]

[Event "World Junior Chess Championship U20 2022"]
[White "Atanasov, Anthony"]
[Black "Liloni, Francesco Mattia"]
[WhiteFideId "2623897"]
[BlackFideId "2872264"]
[WhiteElo "2148"]
[BlackElo "1876"]
[Result "1-0"]
[Round "04"]
[TimeControl "5400+30"]
[Date "2022.10.14"]
[WhiteClock "0:32:32"]
[BlackClock "1:15:28"]

1. e4 {[%clk 1:30:57]}  e5 {[%clk 1:30:54]} 2. Nc3 {[%clk 1:31:18]}  Nf6 {[%clk 1:30:40]} 3. Nf3 {[%clk 1:31:32]}  d5 {[%clk 1:28:12]} 4. exd5 {[%clk 1:25:08]}  e4 {[%clk 1:28:03]} 5. Ng5 {[%clk 1:15:12]}  Bf5 {[%clk 1:28:06]} 6. Qe2 {[%clk 1:02:37]}  Bd6 {[%clk 1:24:31]} 7. d3 {[%clk 0:54:32]}  O-O {[%clk 1:21:37]} 8. dxe4 {[%clk 0:46:42]}  Re8 {[%clk 1:21:44]} 9. Be3 {[%clk 0:45:06]}  Nxe4 {[%clk 1:21:40]} 10. Ngxe4 {[%clk 0:45:28]}  Bxe4 {[%clk 1:21:58]} 11. Nxe4 {[%clk 0:45:44]}  Rxe4 {[%clk 1:22:25]} 12. Qf3 {[%clk 0:44:12]}  Rb4 {[%clk 1:22:01]} 13. O-O-O {[%clk 0:42:49]}  Nd7 {[%clk 1:21:54]} 14. Bd3 {[%clk 0:37:16]}  Ne5 {[%clk 1:20:06]} 15. Qe2 {[%clk 0:37:42]}  Qf6 {[%clk 1:19:35]} 16. c3 {[%clk 0:37:30]}  Ra4 {[%clk 1:18:58]} 17. Bxh7+ {[%clk 0:36:58]}  Kh8 {[%clk 1:18:48]} 18. Bc2 {[%clk 0:36:18]}  Rxa2 {[%clk 1:17:53]} 19. Kb1 {[%clk 0:35:29]}  Rxb2+ {[%clk 1:15:06]} 20. Kxb2 {[%clk 0:35:51]}  b5 {[%clk 1:15:25]} 21. Qh5+ {[%clk 0:32:13]}  Kg8 {[%clk 1:15:46]} 22. Bg5 {[%clk 0:32:04]}  Nc4+ {[%clk 1:15:50]} 23. Ka2 {[%clk 0:31:42]}  Qxc3 {[%clk 1:15:02]} 24. Qh7+ {[%clk 0:32:06]}  Kf8 {[%clk 1:15:28]} 25. Qh8# {[%clk 0:32:32]} 1-0


[Site "http://www.chessbomb.com"]